fUSD/lending_fUSD_20241107
["ID","MTS","AMOUNT","RATE_DAILY","PERIOD"]
[341588842,1731011462807,-903.61,0.00027986,2]
[341588843,1731011462817,-611.13,0.00027986,2]
[341588844,1731011462826,-536.6,0.00027986,2]
[341588845,1731011462835,-500.0,0.00027986,2]
[341588846,1731011462845,-1742.22,0.00027986,2]
[341588847,1731011462854,-681.8,0.00027986,2]
[341588848,1731011462863,-500.0,0.00027986,2]
[341588849,1731011462873,-796.28,0.00027986,2]
[341588850,1731011462883,-1014.82,0.00027986,2]
[341588851,1731011462893,-267.972963,0.00027986,7]
[341588852,1731011462903,-267.972963,0.00027986,7]
[341588853,1731011462914,-869.27,0.00027986,2]
[341588854,1731011462924,-1155.46,0.00027986,2]
[341588855,1731011462934,-803.98,0.00027986,2]
[341588856,1731011462943,-500.0,0.00027986,2]
[341588857,1731011462954,-720.32,0.00027986,2]
[341588858,1731011462965,-500.0,0.00027986,2]
[341588859,1731011462974,-702.99,0.00027986,2]
[341588860,1731011462983,-500.0,0.00027986,2]
[341588861,1731011462992,-614.56,0.00027986,2]
[341588862,1731011463003,-1075.73,0.00027986,2]
[341588863,1731011463012,-1171.81,0.00027986,2]
[341588864,1731011463022,-1149.96,0.00027986,2]
[341588865,1731011463032,-937.81,0.00027986,2]
[341588866,1731011463046,-500.0,0.00027986,2]
[341588867,1731011463055,-758.67,0.00027986,2]
[341588868,1731011463065,-500.0,0.00027986,2]
[341588869,1731011463074,-500.0,0.00027986,2]
[341588870,1731011463084,-500.0,0.00027986,2]
[341588871,1731011463093,-151.0,0.00027986,7]
[341588872,1731011463103,-573.46,0.00027986,2]
[341588873,1731011463112,-1475.73,0.00027986,2]
[341588874,1731011463124,-671.65,0.00027986,2]
[341588875,1731011463134,-695.77,0.00027986,2]
[341588876,1731011463144,-500.0,0.00027986,2]
[341588877,1731011463153,-10075.22,0.00027986,2]
[341588878,1731011463163,-819.35,0.00027986,2]
[341588879,1731011463172,-647.4,0.00027986,2]
[341588880,1731011463182,-956.23,0.00027986,2]
[341588881,1731011463191,-689.92,0.00027986,2]
[341588882,1731011463201,-4249.4,0.00027986,2]
[341588883,1731011463210,-500.0,0.00027986,2]
[341588884,1731011463220,-500.0,0.00027986,2]
[341588885,1731011463229,-929.84,0.00027986,2]
[341588886,1731011463239,-907.42,0.00027986,2]
[341588887,1731011463249,-3743.23,0.00027986,2]
[341588888,1731011463259,-568.89,0.00027986,2]
[341588889,1731011463269,-500.0,0.00027986,2]
[341588890,1731011463278,-500.0,0.00027986,2]
[341588891,1731011463289,-1929.67,0.00027986,2]
[341588892,1731011463298,-500.0,0.00027986,2]
[341588893,1731011463308,-500.0,0.00027986,2]
[341588894,1731011463317,-151.0,0.00027986,7]
[341588895,1731011463327,-740.46,0.00027986,2]
[341588896,1731011463336,-500.0,0.00027986,2]
[341588897,1731011463346,-1116.29,0.00027986,2]
[341588898,1731011463356,-245.773636,0.00027986,7]
[341588899,1731011463367,-599.52,0.00027986,2]
[341588900,1731011463377,-801.48,0.00027986,2]
[341588901,1731011463386,-487.85653437,0.00027986,2]
[341588902,1731011463396,-821.57,0.00027986,2]
[341588903,1731011463405,-949.5,0.00027986,2]
[341588904,1731011463415,-999.73,0.00027986,2]
[341588905,1731011463426,-1580.55,0.00027986,2]
[341588906,1731011463435,-411.960432,0.00027986,7]
[341588907,1731011463445,-513.85,0.00027986,2]
[341588908,1731011463455,-411.960432,0.00027986,7]
[341588909,1731011463464,-347.026174,0.00027986,7]
[341588910,1731011463474,-1429.73,0.00027986,2]
[341588911,1731011463483,-347.026174,0.00027986,7]
[341588912,1731011463493,-727.36,0.00027986,2]
[341588913,1731011463503,-1857.64,0.00027986,2]
[341588914,1731011463512,-1048.23,0.00027986,2]
[341588915,1731011463523,-2351.69,0.00027986,2]
[341588916,1731011463532,-1216.18,0.00027986,2]
[341588917,1731011463542,-3235.8,0.00027986,2]
[341588918,1731011463551,-641.07,0.00027986,2]
[341588919,1731011463561,-150.0,0.00027986,2]
[341588920,1731011463571,-602.15,0.00027986,2]
[341588921,1731011463581,-151.0,0.00027986,7]
[341588922,1731011463589,-151.0,0.00027986,7]
[341588923,1731011463599,-580.34,0.00027986,2]
[341588924,1731011463609,-151.0,0.00027986,7]
[341588925,1731011463619,-649.63,0.00027986,2]
[341588926,1731011463629,-543.93,0.00027986,2]
[341588927,1731011463638,-500.0,0.00027987,2]
[341588928,1731011463648,-500.0,0.00027987,2]
[341588929,1731011463657,-500.0,0.00027987,2]
[341588930,1731011463666,-500.0,0.00027987,2]
[341588931,1731011463676,-500.0,0.00027987,2]
[341588932,1731011463685,-500.0,0.00027987,2]
[341588933,1731011463695,-151.0,0.00027987,7]
[341588934,1731011463706,-500.0,0.00027987,2]
[341588935,1731011463715,-500.0,0.00027987,2]
[341588936,1731011463725,-500.0,0.00027987,2]
[341588937,1731011463735,-151.0,0.00027987,7]
[341588938,1731011463745,-151.0,0.00027987,7]
[341588939,1731011463754,-151.0,0.00027987,7]
[341588940,1731011463764,-718.23,0.00027987,2]
[341588941,1731011463773,-500.0,0.00027987,2]
[341588942,1731011463783,-607.83,0.00027987,2]
[341588943,1731011463792,-500.0,0.00027987,2]
[341588944,1731011463802,-500.0,0.00027987,2]
[341588945,1731011463811,-760.46,0.00027987,2]
[341588946,1731011463821,-500.0,0.00027987,2]
[341588947,1731011463831,-500.0,0.00027987,2]
[341588948,1731011463840,-215.934326,0.00027987,7]
[341588949,1731011463849,-215.934326,0.00027987,7]
[341588950,1731011463859,-500.0,0.00027987,2]
[341588951,1731011463870,-500.0,0.00027987,2]
[341588952,1731011463880,-500.0,0.00027987,2]
[341588953,1731011463889,-500.0,0.00027987,2]
[341588954,1731011463899,-500.0,0.00027987,2]
[341588955,1731011463909,-1078.76,0.00027987,2]
[341588956,1731011463919,-500.0,0.00027987,2]
[341588957,1731011463929,-213.398111,0.00027987,7]
[341588958,1731011463939,-213.398111,0.00027987,7]
[341588959,1731011463949,-500.0,0.00027987,2]
[341588960,1731011463963,-500.0,0.00027987,2]
[341588961,1731011463972,-621.09,0.00027987,2]
[341588962,1731011463982,-151.0,0.00027987,7]
[341588963,1731011463991,-500.0,0.00027987,2]
[341588964,1731011464000,-636.57,0.00027987,2]
[341588965,1731011464009,-500.0,0.00027987,2]
[341588966,1731011464018,-675.43,0.00027987,2]
[341588967,1731011464029,-971.89,0.00027987,2]
[341588968,1731011464039,-500.0,0.00027987,2]
[341588969,1731011464050,-846.9,0.00027987,2]
[341588970,1731011464060,-151.0,0.00027987,7]
[341588971,1731011464069,-500.0,0.00027987,2]
[341588972,1731011464079,-248.368801,0.00027987,7]
[341588973,1731011464088,-248.368801,0.00027987,7]
[341588974,1731011464097,-500.0,0.00027987,2]
[341588975,1731011464107,-904.79,0.00027987,2]
[341588976,1731011464116,-572.85,0.00027987,2]
[341588977,1731011464128,-500.0,0.00027987,2]
[341588978,1731011464137,-500.0,0.00027987,2]
[341588979,1731011464147,-2160.92,0.00027987,2]
[341588980,1731011464156,-543.592031,0.00027987,7]
[341588981,1731011464166,-151.0,0.00027987,7]
[341588982,1731011464176,-543.592031,0.00027987,7]
[341588983,1731011464185,-1767.52,0.00027987,2]
[341588984,1731011464194,-500.0,0.00027987,2]
[341588985,1731011464203,-1023.78,0.00027987,2]
[341588986,1731011464213,-829.37,0.00027987,2]
[341588987,1731011464223,-500.0,0.00027987,2]
[341588988,1731011464232,-151.0,0.00027987,7]
[341588989,1731011464242,-500.0,0.00027987,2]
[341588990,1731011464252,-500.0,0.00027987,2]
[341588991,1731011464261,-500.0,0.00027987,2]
[341588992,1731011464271,-290.794095,0.00027987,7]
[341588993,1731011464280,-533.07,0.00027987,2]
[341588994,1731011464290,-500.0,0.00027987,2]
[341588995,1731011464299,-290.794095,0.00027987,7]
[341588996,1731011464308,-500.0,0.00027987,2]
[341588997,1731011464317,-500.0,0.00027987,2]
[341588998,1731011464327,-500.0,0.00027987,2]
[341588999,1731011464337,-500.0,0.00027987,2]
[341589000,1731011464347,-974.74,0.00027987,2]
[341589001,1731011464356,-500.0,0.00027987,2]
[341589002,1731011464366,-896.64,0.00027987,2]
[341589003,1731011464382,-1608.14,0.00027987,2]
[341589004,1731011464391,-552.79,0.00027987,2]
[341589005,1731011464401,-500.0,0.00027987,2]
[341589006,1731011464410,-990.97,0.00027987,2]
[341589007,1731011464421,-2519.45,0.00027987,2]
[341589008,1731011464432,-500.0,0.00027987,2]
[341589009,1731011464442,-500.0,0.00027987,2]
[341589010,1731011464452,-151.0,0.00027987,7]
[341589011,1731011464462,-1019.7,0.00027987,2]
[341589012,1731011464472,-500.0,0.00027987,2]
[341589013,1731011464482,-500.0,0.00027987,2]
[341589014,1731011464492,-601.24,0.00027987,2]
[341589015,1731011464502,-774.76,0.00027987,2]
[341589016,1731011464512,-151.0,0.00027987,7]
[341589017,1731011464522,-284.936427,0.00027987,7]
[341589018,1731011464532,-284.936427,0.00027987,7]
[341589019,1731011464542,-500.0,0.00027987,2]
[341589020,1731011464551,-500.0,0.00027987,2]
[341589021,1731011464561,-4435.81,0.00027987,2]
[341589022,1731011464570,-538.61,0.00027987,2]
[341589023,1731011464580,-551.51,0.00027987,2]
[341589024,1731011464589,-1241.37,0.00027987,2]
[341589025,1731011464599,-500.0,0.00027987,2]
[341589026,1731011464608,-151.0,0.00027987,7]
[341589027,1731011464617,-151.0,0.00027987,7]
[341589028,1731011464628,-778.73,0.00027987,2]
[341589029,1731011464637,-500.0,0.00027987,2]
[341589030,1731011464646,-505.22576018,0.00027987,2]
[341589031,1731011464655,-284.828298,0.00027987,7]
[341589032,1731011464664,-284.828298,0.00027987,7]
[341589033,1731011464674,-518.46,0.00027987,2]
[341589034,1731011464684,-500.0,0.00027987,2]
[341589035,1731011464694,-679.23,0.00027987,2]
[341589036,1731011464705,-500.0,0.00027987,2]
[341589037,1731011464716,-500.0,0.00027987,2]
[341589038,1731011464725,-530.41,0.00027987,2]
[341589039,1731011464735,-151.0,0.00027987,7]
[341589040,1731011464745,-500.0,0.00027987,2]
[341589041,1731011464758,-500.0,0.00027987,2]
[341589042,1731011464767,-151.0,0.00027987,7]
[341589043,1731011464777,-500.0,0.00027987,2]
[341589044,1731011464787,-500.0,0.00027987,2]
[341589045,1731011464796,-622.26,0.00027987,2]
[341589046,1731011464806,-677.13,0.00027987,2]
[341589047,1731011464814,-500.0,0.00027987,2]
[341589048,1731011464823,-500.0,0.00027987,2]
[341589049,1731011464833,-1177.17,0.00027987,2]
[341589050,1731011464842,-500.0,0.00027987,2]
[341589051,1731011464851,-500.0,0.00027987,2]
[341589052,1731011464860,-500.0,0.00027987,2]
[341589053,1731011464870,-500.0,0.00027987,2]
[341589054,1731011464879,-1091.31,0.00027987,2]
[341589055,1731011464888,-522.84,0.00027987,2]
[341589056,1731011464897,-197.582513,0.00027987,7]
[341589057,1731011464906,-661.37,0.00027987,2]
[341589058,1731011464916,-197.582513,0.00027987,7]
[341589059,1731011464925,-161.011242,0.00027987,7]
[341589060,1731011464934,-599.74,0.00027987,2]
[341589061,1731011464943,-1275.41,0.00027987,2]
[341589062,1731011464955,-1084.34,0.00027987,2]
[341589063,1731011464965,-500.0,0.00027987,2]
[341589064,1731011464974,-555.53826542,0.00027987,2]
[341589065,1731011464983,-827.61,0.00027987,2]
[341589066,1731011464992,-1858.207835,0.00027987,7]
[341589067,1731011465002,-500.0,0.00027987,2]
[341589068,1731011465011,-500.0,0.00027987,2]
[341589069,1731011465020,-1858.207835,0.00027987,7]
[341589070,1731011465030,-800.46,0.00027987,2]
[341589071,1731011465040,-500.0,0.00027987,2]
[341589072,1731011465048,-581.87,0.00027987,2]
[341589073,1731011465057,-500.0,0.00027987,2]
[341589074,1731011465067,-500.0,0.00027987,2]
[341589075,1731011465076,-500.0,0.00027987,2]
[341589076,1731011465085,-863.17,0.00027987,2]
[341589077,1731011465094,-500.0,0.00027987,2]
[341589078,1731011465103,-458.98,0.00027987,2]
[341589079,1731011465112,-151.0,0.00027987,7]
[341589080,1731011465123,-546.47,0.00027987,2]
[341589081,1731011465133,-500.0,0.00027987,2]
[341589082,1731011465142,-155.62301073,0.00027987,2]
[341589083,1731011465151,-500.0,0.00027987,2]
[341589084,1731011465160,-196.027821,0.00027987,7]
[341589085,1731011465169,-707.95,0.00027987,2]
[341589086,1731011465178,-3273.297285,0.00027987,7]
[341589087,1731011465187,-196.027821,0.00027987,7]
[341589088,1731011465197,-3273.297285,0.00027987,7]
[341589089,1731011465206,-500.0,0.00027987,2]
[341589090,1731011465215,-963.34,0.00027987,2]
[341589091,1731011465224,-500.0,0.00027987,2]
[341589092,1731011465233,-276.614988,0.00027987,7]
[341589093,1731011465242,-500.0,0.00027987,2]
[341589094,1731011465252,-1137.63,0.00027987,2]
[341589095,1731011465261,-512.69,0.00027987,2]
[341589096,1731011465270,-500.0,0.00027987,2]
[341589097,1731011465279,-2127.02,0.00027987,2]
[341589098,1731011465288,-500.0,0.00027987,2]
[341589099,1731011465297,-890.32,0.00027987,2]
[341589100,1731011465306,-1288.66,0.00027987,2]
[341589101,1731011465315,-500.0,0.00027987,2]
[341589102,1731011465324,-500.0,0.00027987,2]
[341589103,1731011465333,-503.11,0.00027987,2]
[341589104,1731011465342,-304.431527,0.00027987,2]
[341589105,1731011465351,-500.0,0.00027987,2]
[341589106,1731011465360,-1530.92,0.00027987,2]
[341589107,1731011465371,-304.431527,0.00027987,2]
[341589108,1731011465379,-500.0,0.00027987,2]
[341589109,1731011465388,-785.3,0.00027987,2]
[341589110,1731011465397,-500.0,0.00027987,2]
[341589111,1731011465406,-500.0,0.00027987,2]
[341589112,1731011465415,-954.08,0.00027987,2]
[341589113,1731011465424,-500.0,0.00027987,2]
[341589114,1731011465434,-500.0,0.00027987,2]
[341589115,1731011465443,-1375.62,0.00027987,2]
[341589116,1731011465453,-500.0,0.00027987,2]
[341589117,1731011465463,-618.68,0.00027987,2]
[341589118,1731011465472,-554.15,0.00027987,2]
[341589119,1731011465482,-508.01,0.00027987,2]
[341589120,1731011465491,-500.0,0.00027987,2]
[341589121,1731011465500,-706.5,0.00027987,2]
[341589122,1731011465509,-500.0,0.00027987,2]
[341589123,1731011465519,-790.428663,0.00027987,7]
[341589124,1731011465529,-659.14,0.00027987,2]
[341589125,1731011465538,-1684.43,0.00027987,2]
[341589126,1731011465548,-790.428663,0.00027987,7]
[341589127,1731011465557,-500.0,0.00027987,2]
[341589128,1731011465567,-500.0,0.00027987,2]
[341589129,1731011465577,-552.93,0.00027987,2]
[341589130,1731011465586,-620.12,0.00027987,2]
[341589131,1731011465595,-629.42,0.00027987,2]
[341589132,1731011465607,-500.0,0.00027987,2]
[341589133,1731011465617,-203.60956588,0.00027987,2]
[341589134,1731011465628,-1604.7,0.00027987,2]
[341589135,1731011465637,-1037.8,0.00027987,2]
[341589136,1731011465646,-500.0,0.00027987,2]
[341589137,1731011465656,-634.53,0.00027987,2]
[341589138,1731011465665,-500.0,0.00027987,2]
[341589139,1731011465675,-1008.13,0.00027987,2]
[341589140,1731011465686,-500.0,0.00027987,2]
[341589141,1731011465695,-500.0,0.00027987,2]
[341589142,1731011465705,-888.49,0.00027987,2]
[341589143,1731011465715,-500.0,0.00027987,2]
[341589144,1731011465849,-665.72,0.00027987,2]
[341589145,1731011465868,-500.0,0.00027987,2]
[341589146,1731011465881,-602.82,0.00027987,2]
[341589147,1731011465891,-508.37971505,0.00027987,2]
[341589148,1731011465901,-845.97,0.00027987,2]
[341589149,1731011465910,-665.67,0.00027987,2]
[341589150,1731011465920,-500.0,0.00027987,2]
[341589151,1731011465929,-500.0,0.00027987,2]
[341589152,1731011465939,-151.0,0.00027987,7]
[341589153,1731011465949,-779.11,0.00027987,2]
[341589154,1731011465961,-500.0,0.00027987,2]
[341589155,1731011465971,-500.0,0.00027987,2]
[341589156,1731011465981,-1260.12,0.00027987,2]
[341589157,1731011465990,-500.0,0.00027987,2]
[341589158,1731011466000,-150.0,0.00027989,2]
[341589160,1731011466009,-150.0,0.00027989,2]
[341589161,1731011466018,-1627.46719894,0.00027992,2]
[341589162,1731011466029,-200.0,0.00027992,2]
[341589163,1731011466039,-150.0,0.00027992,2]
[341589164,1731011466049,-1829.814,0.00028,18]
[341589165,1731011466058,-171.13,0.00028,18]
[341589166,1731011466067,-274.02720442,0.00028,2]
[341589167,1731011466076,-150.0,0.00028,2]
[341589168,1731011466085,-163.90428723,0.00028,2]
[341589169,1731011466094,-150.0,0.00028005,2]
[341589170,1731011466103,-4760.49711205,0.00028009,2]
[341589171,1731011466112,-150.0,0.00028011,2]
[341589172,1731011466122,-224.99752713,0.00028011,2]
[341589173,1731011466131,-595.99,0.00028013,2]
[341589174,1731011466140,-150.0,0.00028014,2]
[341589175,1731011466149,-150.0,0.00028022,2]
[341589176,1731011466159,-150.0,0.00028028,2]
[341589177,1731011466169,-150.0,0.00028032,2]
[341589178,1731011466178,-150.0,0.00028032,2]
[341589179,1731011466187,-150.0,0.00028035,2]
[341589180,1731011466196,-150.0,0.00028039,2]
[341589181,1731011466205,-150.0,0.00028048,2]
[341589182,1731011466214,-150.0,0.00028049,2]
[341589183,1731011466223,-150.0,0.00028049,2]
[341589184,1731011466232,-150.0,0.00028049,2]
[341589185,1731011466242,-150.0,0.00028049,2]
[341589186,1731011466251,-1500.0,0.00028051,2]
[341589187,1731011466261,-150.0,0.00028054,2]
[341589188,1731011466271,-150.0,0.00028055,2]
[341589189,1731011466280,-150.0,0.00028057,2]
[341589190,1731011466289,-150.0,0.00028058,2]
[341589191,1731011466299,-150.0,0.00028058,2]
[341589192,1731011466308,-150.0,0.00028063,2]
[341589193,1731011466317,-150.0,0.00028064,2]
[341589194,1731011466326,-152.05071458,0.00028064,2]
[341589195,1731011466335,-150.0,0.00028067,2]
[341589196,1731011466344,-150.0,0.00028068,2]
[341589197,1731011466354,-150.0,0.00028069,2]
[341589198,1731011466363,-150.0,0.00028069,2]
[341589199,1731011466372,-150.0,0.00028079,2]
[341589200,1731011466382,-2110.0,0.00028085,2]
[341589201,1731011466392,-151.0,0.00028087,7]
[341589202,1731011466401,-248.368801,0.00028087,7]
[341589203,1731011466411,-248.368801,0.00028087,7]
[341589204,1731011466422,-993.4,0.00028087,2]
[341589205,1731011466434,-500.0,0.00028087,2]
[341589206,1731011466445,-500.0,0.00028087,2]
[341589207,1731011466454,-151.0,0.00028087,7]
[341589208,1731011466463,-151.0,0.00028087,7]
[341589209,1731011466473,-284.828298,0.00028087,7]
[341589210,1731011466483,-284.828298,0.00028087,7]
[341589211,1731011466494,-197.582513,0.00028087,7]
[341589212,1731011466505,-197.582513,0.00028087,7]
[341589213,1731011466516,-595.99,0.00028087,2]
[341589214,1731011466526,-151.0,0.00028088,7]
[341589215,1731011466537,-151.0,0.00028088,7]
[341589216,1731011466547,-151.0,0.00028088,7]
[341589217,1731011466558,-151.0,0.00028088,7]
[341589218,1731011466567,-151.0,0.00028088,7]
[341589219,1731011466578,-500.0,0.00028088,2]
[341589220,1731011466588,-500.0,0.00028088,2]
[341589221,1731011466597,-621.18,0.00028088,2]
[341589222,1731011466607,-215.934326,0.00028088,7]
[341589223,1731011466616,-500.0,0.00028088,2]
[341589224,1731011466626,-215.934326,0.00028088,7]
[341589225,1731011466635,-500.0,0.00028088,2]
[341589226,1731011466645,-500.0,0.00028088,2]
[341589227,1731011466656,-690.39,0.00028088,2]
[341589228,1731011466665,-500.0,0.00028088,2]
[341589229,1731011466675,-213.398111,0.00028088,7]
[341589230,1731011466685,-213.398111,0.00028088,7]
[341589231,1731011466696,-500.0,0.00028088,2]
[341589232,1731011466707,-500.0,0.00028088,2]
[341589233,1731011466716,-151.0,0.00028088,7]
[341589234,1731011466726,-543.592031,0.00028088,7]
[341589235,1731011466736,-151.0,0.00028088,7]
[341589236,1731011466746,-543.592031,0.00028088,7]
[341589237,1731011466756,-290.794095,0.00028088,7]
[341589238,1731011466768,-290.794095,0.00028088,7]
[341589239,1731011466777,-284.936427,0.00028088,7]
[341589240,1731011466787,-284.936427,0.00028088,7]
[341589241,1731011466797,-151.0,0.00028088,7]
[341589242,1731011466807,-151.0,0.00028088,7]
[341589243,1731011466817,-173.352507,0.00028088,7]
[341589244,1731011466826,-267.972963,0.00028088,7]
[341589245,1731011466836,-267.972963,0.00028088,7]
[341589246,1731011466845,-411.960432,0.00028088,7]
[341589247,1731011466855,-411.960432,0.00028088,7]
[341589248,1731011466864,-347.026174,0.00028088,7]
[341589249,1731011466873,-347.026174,0.00028088,7]
[341589250,1731011466882,-151.0,0.00028088,7]
[341589251,1731011466891,-151.0,0.00028088,7]
[341589252,1731011466901,-150.0,0.00028091,2]
[341589253,1731011466911,-150.0,0.00028098,2]
[341589254,1731011466921,-150.0,0.000281,2]
[341589255,1731011466930,-150.0,0.00028103,2]
[341589256,1731011466941,-150.0,0.00028105,2]
[341589257,1731011466951,-150.0,0.00028106,2]
[341589258,1731011466967,-150.0,0.00028108,2]
[341589259,1731011466978,-150.0,0.00028112,2]
[341589260,1731011466987,-154.45694251,0.00028113,2]
[341589261,1731011466997,-150.0,0.00028116,2]
[341589262,1731011467007,-150.0,0.00028116,2]
[341589263,1731011467016,-150.0,0.0002812,2]
[341589264,1731011467026,-150.0,0.00028123,2]
[341589265,1731011467036,-150.0,0.00028125,2]
[341589266,1731011467045,-150.0,0.00028126,2]
[341589267,1731011467055,-150.0,0.00028131,2]
[341589268,1731011467065,-150.0,0.00028131,2]
[341589269,1731011467074,-151.0,0.00028132,7]
[341589270,1731011467083,-151.0,0.00028132,7]
[341589271,1731011467093,-150.0,0.00028132,2]
[341589272,1731011467102,-150.0,0.00028133,2]
[341589273,1731011467112,-150.0,0.00028134,2]
[341589274,1731011467121,-1500.0,0.00028135,2]
[341589275,1731011467131,-150.0,0.00028141,2]
[341589276,1731011467141,-150.0,0.00028142,2]
[341589277,1731011467150,-150.0,0.00028146,2]
[341589278,1731011467160,-177.32,0.00028147,2]
[341589279,1731011467169,-150.0,0.00028148,2]
[341589280,1731011467178,-150.0,0.00028155,2]
[341589281,1731011467188,-150.0,0.00028155,2]
[341589282,1731011467197,-150.0,0.00028155,2]
[341589283,1731011467207,-150.0,0.00028156,2]
[341589284,1731011467216,-2000.0,0.00028156,5]
[341589285,1731011467225,-150.0,0.00028159,2]
[341589286,1731011467235,-150.0,0.00028159,2]
[341589287,1731011467244,-150.0,0.0002816,2]
[341589288,1731011467253,-171.57046903,0.0002816,2]
[341589289,1731011467262,-581.69709922,0.00028161,2]
[341589290,1731011467271,-150.0,0.00028162,2]
[341589291,1731011467281,-150.0,0.00028163,2]
[341589292,1731011467290,-150.0,0.00028167,2]
[341589293,1731011467299,-150.0,0.00028169,2]
[341589294,1731011467308,-150.0,0.00028176,2]
[341589295,1731011467318,-150.0,0.00028178,2]
[341589296,1731011467327,-43074.30548255,0.0002818,2]
[341589297,1731011467337,-150.0,0.0002818,2]
[341589298,1731011467346,-151.0,0.0002818,7]
[341589299,1731011467355,-150.0,0.00028182,2]
[341589300,1731011467365,-152.82772214,0.00028186,2]
[341589301,1731011467376,-150.0,0.00028187,2]
[341589302,1731011467385,-150.0,0.00028188,2]
[341589303,1731011467394,-150.0,0.00028189,2]
[341589304,1731011467405,-150.0,0.0002819,2]
[341589305,1731011467414,-150.0,0.00028191,2]
[341589306,1731011467424,-150.0,0.00028192,2]
[341589307,1731011467434,-150.0,0.00028198,2]
[341589308,1731011467443,-985.9259,0.00028199,2]
[341589309,1731011467452,-150.0,0.00028199,2]
[341589310,1731011467462,-150.0,0.000282,2]
[341589311,1731011467471,-1500.0,0.00028202,2]
[341589312,1731011467480,-150.0,0.00028202,2]
[341589313,1731011467491,-150.0,0.00028203,2]
[341589314,1731011467500,-150.0,0.00028206,2]
[341589315,1731011467511,-150.0,0.0002821,2]
[341589316,1731011467520,-150.0,0.00028216,2]
[341589317,1731011467530,-150.0,0.00028218,2]
[341589318,1731011467540,-150.0,0.00028218,2]
[341589319,1731011467549,-150.0,0.00028218,2]
[341589320,1731011467559,-150.0,0.00028218,2]
[341589321,1731011467568,-151.0,0.00028218,7]
[341589322,1731011467580,-446842.33614194,0.00028219,4]
[341589323,1731011467590,-4219.31014527,0.00028219,4]
[341589324,1731011467599,-500.0,0.00028219,2]
[341589325,1731011467609,-500.0,0.00028219,2]
[341589326,1731011467618,-609.87569138,0.00028219,2]
[341589327,1731011467631,-500.0,0.00028219,2]
[341589328,1731011467639,-500.0,0.00028219,2]
[341589329,1731011467649,-500.0,0.00028219,2]
[341589330,1731011467659,-465.13487981,0.00028219,2]
[341589331,1731011467668,-267.49824241,0.00028219,2]
[341589332,1731011467677,-552.89,0.00028219,2]
[341589333,1731011467689,-500.0,0.00028219,2]
[341589334,1731011467698,-500.0,0.00028219,2]
[341589335,1731011467708,-500.0,0.00028219,2]
[341589336,1731011467718,-500.0,0.00028219,2]
[341589337,1731011467728,-500.0,0.00028219,2]
[341589338,1731011467739,-996.29,0.00028219,2]
[341589339,1731011467748,-500.0,0.00028219,2]
[341589340,1731011467758,-832.94,0.00028219,2]
[341589341,1731011467768,-656.7,0.00028219,2]
[341589342,1731011467777,-500.0,0.00028219,2]